Cogmind - Beta 13 @@@ ROGUE MODE // 2024.07.10 @ 02:13:49 Player: Duduxx Result: Core destroyed Performance ------------- Evolutions (3) 1500 Regions Visited (5) 1000 Robots Destroyed (96) 480 Value Destroyed (2790) 2790 Prototype IDs (7) 140 Alien Tech Used (0) 0 Bonus (629) 629 TOTAL SCORE: 6539 Bonus ------- High Alert Combat Kills 129 Entered DSFs 500 Cogmind --------- Core Integrity 0/700 Matter 100/300 Energy 153/160 System Corruption 3% Temperature Critical (804) Movement Treading (160) Location -7/DSF Parts ------- > --- POWER (2) -------- Light Nuclear Core > --- PROPULSION (4) --- Medium Treads Medium Treads Medium Treads Medium Treads > --- UTILITY (5) ------ Medium Storage Unit Advanced Targeting Computer System Shield > --- WEAPON (2) ------- Advanced Assault Cannon Mace > --- INVENTORY (10) --- Cesium-ion Thruster Cesium-ion Thruster Cesium-ion Thruster Advanced Assault Cannon Advanced EMP Blaster Peak State ------------ > --- POWER ------------ Light Deuterium Engine Light Nuclear Core > --- PROPULSION ------- Improved Flight Unit Improved Flight Unit Improved Flight Unit Improved Flight Unit > --- UTILITY ---------- Medium Storage Unit Weight Redist. System Advanced Targeting Computer Advanced Targeting Computer System Shield > --- WEAPON ----------- Heavy Assault Rifle Rocket Launcher > --- INVENTORY -------- Improved Hover Unit Improved Hover Unit Advanced EMP Blaster Rocket Launcher Rocket Launcher Mace [Rating: 35] Favorites ----------- Power Light Nuclear Core Engine Ion Engine Power Core Light Nuclear Core Propulsion Improved Flight Unit Treads Light Treads Leg Aluminum Leg Hover Unit Airjet Flight Unit Improved Flight Unit Utility Advanced Targeting Computer Device Shield Generator Storage Large Storage Unit Processor Advanced Targeting Computer Hackware System Shield Protection Medium Armor Plating Weapon Improved Medium Laser Energy Gun Improved Medium Laser Energy Cannon Particle Cannon Ballistic Gun Light Assault Rifle Ballistic Cannon Advanced Assault Cannon Launcher Rocket Launcher Impact Weapon Mace Slashing Weapon Mining Claw Build | -11 -10 -9 -8 -7 -7 ------- Run | Yrd Mat Mat Mat Fac DSF Slots Evolved 6 | . . 2 2 2 . Power 1 | . . . . 1 . Propulsion 2 | . . . 2 . . Utility 3 | . . 2 . 1 . Weapon . | . . . . . . Parts Attached 110 | 6 15 38 21 5 25 Power 12 | 1 2 4 1 2 2 Engine 9 | 1 2 3 . 2 1 Core 3 | . . 1 1 . 1 Reactor . | . . . . . . Propulsion 48 | 2 5 14 10 . 17 Treads 20 | 2 1 7 2 . 8 Leg 7 | . 4 3 . . . Wheel . | . . . . . . Hover 4 | . . 3 1 . . Flight 17 | . . 1 7 . 9 Utility 16 | 1 3 7 3 2 . Device 5 | . . 3 1 1 . Storage 4 | 1 2 . 1 . . Processor 4 | . 1 3 . . . Hackware 2 | . . . 1 1 . Protection 1 | . . 1 . . . Artifact . | . . . . . . Weapon 34 | 2 5 13 7 1 6 Energy Gun 8 | 1 3 3 1 . . Energy Cannon 5 | . . 4 1 . . Ballistic Gun 7 | 1 2 2 2 . . Ballistic Cannon 3 | . . . 1 . 2 Launcher 7 | . . 2 1 1 3 Special Weapon . | . . . . . . Impact Weapon 2 | . . . 1 . 1 Slashing Weapon 2 | . . 2 . . . Piercing Weapon . | . . . . . . Special Melee Weapon . | . . . . . . Unidentified Prototypes 3 | . 1 2 . . . Corrupted Parts 1 | . . 1 . . . System Corruption 1 | . . 1 . . . Parts Lost 38 | . 2 12 7 1 16 Power 6 | . 1 1 1 . 3 Propulsion 15 | . 1 4 3 . 7 Utility 7 | . . 3 1 1 2 Weapon 10 | . . 4 2 . 4 Highest Loss Streak 10 | . 2 2 2 1 10 To Critical Strikes . | . . . . . . Average Slot Usage (%) 91 | . 90 94 92 77 67 Engine 6 | . 9 8 . 1 3 Core 3 | . . 2 9 7 3 Treads 7 | . 11 7 3 . 14 Leg 8 | . 16 10 . . . Hover 1 | . . 3 1 . . Flight 7 | . . . 31 30 9 Device 6 | . . 10 4 1 1 Storage 10 | . 14 11 9 7 7 Processor 15 | . 10 16 19 15 7 Energy Gun 7 | . 13 8 4 . . Energy Cannon 3 | . . 3 7 . . Ballistic Gun 5 | . 13 6 . 7 . Slashing Weapon 2 | . . 3 . . . Naked Turns . | . . . . . . Heaviest Build 40 | 12 30 40 23 27 34 Greatest Support 112 | 40 40 40 40 26 112 Greatest Overweight (x) 7 | . 1 4 7 1 1 Average Overweight (x) . | . . . . . . Largest Inventory Capacity 15 | 8 15 15 15 10 10 Average Capacity 12 | 6 9 15 10 10 10 Most Carried 13 | 4 7 13 13 8 10 Average Carried 6 | 2 5 6 8 7 5 Final Capacity 15 | 8 15 15 10 10 10 Final Carried 13 | 4 6 13 8 7 5 Class Distribution -------------------- 81% | Mutant 13% | Sprinter 5% | Scavenger-Mutant Dominant Class ---------------- Mutant | -10/Materials Mutant | -9/Materials Sprinter | -8/Materials Sprinter | -7/Factory Mutant | -7/DSF Resources | -11 -10 -9 -8 -7 -7 ----------- Run | Yrd Mat Mat Mat Fac DSF Matter Collected 1570 | 176 322 460 321 51 240 Remotely . | . . . . . . Salvage Created 3397 | . 665 1466 948 51 267 Parts 198 | . 44 78 54 3 19 Haulers Intercepted 7 | . . 5 . 1 1 Recyclers Shooed 3 | . . 3 . . . Parts Field Recycled . | . . . . . . Retrieved Matter . | . . . . . . Parts Self-Destructed . | . . . . . . Prevented . | . . . . . . Kills | -11 -10 -9 -8 -7 -7 ------- Run | Yrd Mat Mat Mat Fac DSF Combat Hostiles Destroyed 72 | . 14 27 20 . 11 Melee 7 | . . 5 . . 2 Guns 35 | . 14 18 3 . . Cannons 18 | . . 2 14 . 2 AOE 9 | . . . 3 . 6 Classes Destroyed 14 | . 7 3 1 . 3 Worker 2 | . 1 . 1 . . Tunneler 1 | . 1 . . . . Hauler 7 | . . 5 . 1 1 Recycler 3 | . 2 1 . . . Operator 2 | . 1 . 1 . . Watcher 9 | . 2 5 2 . . Swarmer 19 | . 3 9 4 . 3 Cutter 1 | . . . . . 1 Grunt 29 | . 11 8 10 . . Brawler 1 | . . . 1 . . Duelist 1 | . . 1 . . . Sentry 14 | . . 9 5 . . Specialist 6 | . . . . . 6 Hunter 1 | . . . . . 1 Best Kill Streak 7 | . 7 5 7 1 4 Combat Bots Only 6 | . 6 4 5 . 3 Max Kills in Single Turn 3 | . 2 1 3 1 1 Gunslinging 1 | . 1 . . . . Exploded 3 | . . . 3 . 1 Melee 1 | . . 1 . . 1 Uniques/NPCs Destroyed . | . . . . . . Combat | -11 -10 -9 -8 -7 -7 -------- Run | Yrd Mat Mat Mat Fac DSF Hostile Shots Fired 512 | . 62 205 100 . 145 Missed 161 | . 10 61 43 . 47 Damage Taken 5267 | . 601 1465 812 . 2389 Core 1317 | . 102 246 183 . 786 Absorbed by Shields 279 | . . 279 . . . Core Remaining (%) 65 | 100 59 38 66 . . Volleys Fired 264 | . 40 109 92 2 21 Largest 2 | . 2 2 2 1 2 Hottest 133 | . 76 112 133 23 81 Shots Fired 415 | . 80 197 109 2 27 Gun 275 | . 80 167 26 2 . Cannon 120 | . . 30 81 . 9 Launcher 20 | . . . 2 . 18 Special . | . . . . . . Kinetic 119 | . 40 64 4 2 9 Thermal 228 | . 27 103 98 . . Explosive 20 | . . . 2 . 18 Electromagnetic 48 | . 13 30 5 . . Robot Hit Streak 14 | . 14 13 12 10 9 Robot Miss Streak 6 | . 2 6 2 . 2 Penetration Max . | . . . . . . Secondary Targets 4 | . 2 2 . . . Max Gunslinging Chain 1 | . 1 1 . . . Shots Hit Robots 313 | . 55 145 87 2 24 Core Hits 151 | . 31 56 42 1 21 Critical Kills . | . . . . . . Critical Parts Destroyed 1 | . . . . . 1 Critical Strikes 18 | . 4 12 . . 2 Burn 15 | . 4 11 . . . Blast 1 | . . . . . 1 Corrupt 1 | . . 1 . . . Smash 1 | . . . . . 1 Melee Attacks 36 | . . 29 1 . 6 Impact 7 | . . . 1 . 6 Slashing 29 | . . 29 . . . Piercing . | . . . . . . Sneak Attacks 3 | . . 3 . . . Combat Hostiles . | . . . . . . Follow-up Attacks . | . . . . . . Damage Inflicted 6680 | . 856 2328 1998 33 1465 Guns 2657 | . 827 1448 349 33 . Cannons 1983 | . . 516 1301 . 166 Explosions 1486 | . . . 348 . 1138 Melee 489 | . . 336 . . 153 Ramming 65 | . 29 28 . . 8 Kinetic 943 | . 328 355 61 33 166 Thermal 3033 | . 373 1093 1567 . . Explosive 1412 | . . . 274 . 1138 Electromagnetic 738 | . 126 516 96 . . Impact 153 | . . . . . 153 Slashing 336 | . . 336 . . . Piercing . | . . . . . . Highest Corruption 3 | . . 2 . . 3 Average Corruption 2 | . . 1 . . 3 Corruption Purged . | . . . . . . Corruption Blocked . | . . . . . . Effects 23 | . . 18 . . 5 Message Errors 9 | . . 8 . . 1 Matter Fused 3 | . . 1 . . 2 Heat Flow Errors 2 | . . 2 . . . Energy Discharges 5 | . . 4 . . 1 Data Loss (minor) 3 | . . 2 . . 1 Misfires 1 | . . 1 . . . Overload Shots . | . . . . . . Overflow Damage 183 | . . 49 45 . 89 Projectiles 68 | . . 23 45 . . Explosions 44 | . . . . . 44 Melee 71 | . . 26 . . 45 Knockbacks 4 | . 1 . . . 3 Impact 3 | . 1 . . . 2 Kinetic 1 | . . . . . 1 Secondary . | . . . . . . Self-Inflicted Damage 140 | . . . . . 140 Shots 4 | . . . . . 4 Rammed 7 | . 2 3 . . 2 Targets Rammed 13 | . 8 3 . . 2 Kicked 5 | . 5 . . . . Crushed 1 | . 1 . . . . Highest Temperature 804 | . 193 387 501 . 804 Average Temperature 120 | . 53 99 136 . 263 Received Heat Transfer 1079 | . 270 341 396 . 72 Effects 28 | . . 4 12 . 12 Shutdowns 5 | . . 1 2 . 2 Energy Bleed 4 | . . 1 2 . 1 Interference 9 | . . 1 6 . 2 Matter Decay 3 | . . 1 2 . . Short Circuit 1 | . . . . . 1 Damage (major) 2 | . . . . . 2 Damage (core) 4 | . . . . . 4 Siege Activations . | . . . . . . Robots Corrupted . | . . . . . . Combat Hostiles . | . . . . . . Parts Fried 2 | . 1 1 . . . Impact Corruptions 2 | . . . . . 2 Robots Melted 2 | . . 2 . . . Combat Hostiles 2 | . . 2 . . . Parts Melted 6 | . 2 4 . . . Heat Transferred 7464 | . 1111 3404 2949 . . Parts Sabotaged . | . . . . . . Parts Stolen . | . . . . . . Parts Stripped . | . . . . . . Power Chain Reactions 1 | . . . 1 . . Alert | -11 -10 -9 -8 -7 -7 ------- Run | Yrd Mat Mat Mat Fac DSF Peak Influence 557 | . 392 352 557 202 431 Initial 175 | . . 33 8 175 141 Average 208 | . 211 135 367 180 302 Maximum Alert Level 2 | . 1 1 2 1 2 Low Security (%) 48 | 100 25 69 19 98 17 Level 1 40 | . 74 30 35 1 55 Level 2 11 | . . . 45 . 27 Level 3 . | . . . . . . Level 4 . | . . . . . . Level 5 . | . . . . . . High Security . | . . . . . . Max Security . | . . . . . . Sterilizations 1 | . . . . . 1 Squads Dispatched 17 | . 2 3 7 2 3 Investigation 8 | . 1 2 4 1 . Extermination . | . . . . . . Reinforcement 9 | . 1 1 3 1 3 Assault . | . . . . . . Garrison . | . . . . . . Intercept . | . . . . . . Searches Triggered . | . . . . . . Construction Impeded . | . . . . . . Haulers Reinforced . | . . . . . . Active Scanning Responses . | . . . . . . Cargo Convoy Interrupts . | . . . . . . Stealth | -11 -10 -9 -8 -7 -7 --------- Run | Yrd Mat Mat Mat Fac DSF Distress Signals 6 | . . 4 2 . . Communications Jammed . | . . . . . . Distress Signals . | . . . . . . Times Spotted 119 | . 20 48 33 1 17 Peak Tracking Total 6 | . 3 5 6 1 4 Tactical Retreats 11 | . 1 5 1 . 4 Traps | -11 -10 -9 -8 -7 -7 ------- Run | Yrd Mat Mat Mat Fac DSF Traps Triggered 12 | . 7 3 2 . . Indirectly . | . . . . . . Trap Hack Attempts . | . . . . . . Triggered . | . . . . . . Disarmed . | . . . . . . Reprogrammed . | . . . . . . Reused . | . . . . . . Traps Extracted . | . . . . . . Installed . | . . . . . . Triggered . | . . . . . . Machines | -11 -10 -9 -8 -7 -7 ---------- Run | Yrd Mat Mat Mat Fac DSF Machines Disabled 2 | . . . 1 . 1 Max in Single Turn 1 | . . . 1 . 1 Machines Repaired . | . . . . . . Machines Dismantled . | . . . . . . Machines Sabotaged . | . . . . . . Overloaded Fab Kills . | . . . . . . Hacking | -11 -10 -9 -8 -7 -7 --------- Run | Yrd Mat Mat Mat Fac DSF Machines Accessed 19 | . 5 6 5 3 . Terminals 14 | . 3 5 5 1 . Fabricators 1 | . . . . 1 . Repair Stations . | . . . . . . Recycling Units 4 | . 2 1 . 1 . Scanalyzers . | . . . . . . Garrison Access . | . . . . . . Total Hacks 41 | . 6 16 12 7 . Successful 18 | . 5 7 5 1 . Failed 23 | . 1 9 7 6 . Catastrophic 6 | . 1 1 3 1 . Database Lockouts . | . . . . . . Manual 21 | . 1 10 10 . . Terminals 31 | . 4 14 12 1 . Fabricators 2 | . . . . 2 . Repair Stations . | . . . . . . Recycling Units 8 | . 2 2 . 4 . Scanalyzers . | . . . . . . Garrison Access . | . . . . . . Terminal Hacks 16 | . 3 7 5 1 . Record 2 | . . . 2 . . Prototype ID Bank 2 | . 1 1 . . . Open DSF 1 | . . . . 1 . Alert Level 2 | . . 2 . . . Unreport Threat 2 | . . 2 . . . Recall Investigation 1 | . . . 1 . . Hauler Manifests 4 | . 1 2 1 . . Zone Layout 2 | . 1 . 1 . . Fabricator Hacks . | . . . . . . Repair Station Hacks . | . . . . . . Recycling Unit Hacks 2 | . 2 . . . . Report Inventory 2 | . 2 . . . . Scanalyzer . | . . . . . . Garrison Access Hacks . | . . . . . . Unauthorized Hacks . | . . . . . . Terminals . | . . . . . . Fabricators . | . . . . . . Repair Stations . | . . . . . . Recycling Units . | . . . . . . Scanalyzers . | . . . . . . Garrison Access . | . . . . . . Data Cores Recovered . | . . . . . . Used . | . . . . . . Hacking Detections 13 | . 3 4 4 2 . Full Trace Events 5 | . 1 1 2 1 . Feedback Events 1 | . . . . 1 . Hackware Fried 1 | . . . . 1 . Feedback Blocked . | . . . . . . Robot Schematics Acquired . | . . . . . . Robots Built . | . . . . . . Authchips . | . . . . . . Time . | . . . . . . Total Robot Build Rating . | . . . . . . Part Schematics Acquired . | . . . . . . Parts Built . | . . . . . . Authchips . | . . . . . . Time . | . . . . . . Total Part Build Rating . | . . . . . . Parts Repaired . | . . . . . . Time . | . . . . . . Parts Recycled . | . . . . . . Recycled Matter . | . . . . . . Retrieved Matter . | . . . . . . Retrieved Components . | . . . . . . Parts Scanalyzed . | . . . . . . Part Schematics Acquired . | . . . . . . Parts Damaged . | . . . . . . Bothacking | -11 -10 -9 -8 -7 -7 ------------ Run | Yrd Mat Mat Mat Fac DSF Used RIF Installer . | . . . . . . Robots Hacked . | . . . . . . Non-combat . | . . . . . . Combat . | . . . . . . Robot Hacks Applied . | . . . . . . Relay Couplers Released . | . . . . . . Fabnet Peak Effective % . | . . . . . . Robots Rewired . | . . . . . . Allies Hacked . | . . . . . . Hacks Repelled . | . . . . . . Allies | -11 -10 -9 -8 -7 -7 -------- Run | Yrd Mat Mat Mat Fac DSF Total Allies . | . . . . . . Largest Group . | . . . . . . Highest-Rated Group . | . . . . . . Highest-Rated Ally . | . . . . . . Total Orders . | . . . . . . Ally Attacks . | . . . . . . Total Damage . | . . . . . . Kills . | . . . . . . Allies Corrupted . | . . . . . . Allies Melted . | . . . . . . Intel | -11 -10 -9 -8 -7 -7 ------- Run | Yrd Mat Mat Mat Fac DSF Robot Analysis Total . | . . . . . . Derelict Logs Recovered . | . . . . . . Drone Launches . | . . . . . . Drone Recoveries . | . . . . . . Exploration | -11 -10 -9 -8 -7 -7 ------------- Run | Yrd Mat Mat Mat Fac DSF Turns Passed 4472 | 78 815 2254 930 58 337 Spaces Moved 3048 | 43 479 963 1211 145 207 Core 3 | 2 . . 1 . . Treads 762 | 41 133 400 92 . 96 Legs 747 | . 346 401 . . . Wheels . | . . . . . . Hover 162 | . . 162 . . . Flight 1374 | . . . 1118 145 111 Fastest Speed 27 | 50 120 116 31 31 27 Average Speed 111 | 154 136 183 51 32 108 Slowest Speed 400 | 160 190 330 400 101 160 Overloaded Moves . | . . . . . . Propulsion Burnouts . | . . . . . . Robots Hopped 2 | . . . 2 . . Cave-ins Triggered . | . . . . . . Exploration Rate (%) 55 | 4 82 85 78 4 81 Regions Visited 5 Branch Regions . Pre-discovered Areas . | . . . . . . Known Exits Taken 1 | . . . . 1 . Unknown Exits Taken 4 | 1 1 1 1 . . Scrap Searched . | . . . . . . Spaces Dug 4 | . . 3 1 . . Terrain Destroyed 123 | . . 3 21 . 99 Melee 4 | . . 3 1 . . Projectile . | . . . . . . AOE 119 | . . . 20 . 99 Terrain Rammed . | . . . . . . Walls Destroyed . | . . . . . . Machines Disabled . | . . . . . . Actions | -11 -10 -9 -8 -7 -7 --------- Run | Yrd Mat Mat Mat Fac DSF Total 3645 | 52 554 1201 1405 153 280 Wait 77 | . 3 18 56 . . Move 3039 | 42 478 962 1206 144 207 Hop 2 | . . . 2 . . Pick Up 39 | 4 5 18 6 . 6 Fast Attach 54 | 6 10 15 9 2 12 Attach 38 | . 3 12 12 3 8 Detach 30 | . 2 11 10 2 5 Swap 19 | . 2 11 1 . 5 Drop 34 | . 3 13 10 . 8 Fire 264 | . 40 109 92 2 21 Melee 36 | . . 29 1 . 6 Ram . | . . . . . . Kick 5 | . 5 . . . . Crush 8 | . 3 3 . . 2 Escape Stasis . | . . . . . . Rewire . | . . . . . . Trap . | . . . . . . Miscellaneous . | . . . . . . Route ------- -11/Scrapyard -10/Materials (discovered 5 exits: *Mat x3 / [*Min x2]) -9/Materials (discovered 4 exits: *Mat x3 / [*Min]) -8/Materials (discovered 2 exits: *Fac x2) -7/Factory -7/DSF (discovered 1 exit: [*Fac]) History --------- Turn | Location | Event 30 | -11/Scrapyard | Discovered new exit (range 14) 79 | -11/Scrapyard | Entered Materials 287 | -10/Materials | Discovered new exit (range 11) 309 | -10/Materials | Discovered new exit (range 14) 310 | -10/Materials | Build established: Mutant 459 | -10/Materials | Discovered new exit (range 13) 492 | -10/Materials | Discovered new exit (range 13) 577 | -10/Materials | Discovered new exit (range 16) 894 | -10/Materials | Entered another Materials area 894 | -9/Materials | Evolved 2 slots: Utility x2 1475 | -9/Materials | Discovered new exit (range 6) 1623 | -9/Materials | Discovered new exit (range 7) 2098 | -9/Materials | Core integrity fell below 50% 2157 | -9/Materials | Discovered new exit (range 14) 2907 | -9/Materials | Discovered new exit (range 15) 3148 | -9/Materials | Entered another Materials area 3148 | -8/Materials | Evolved 2 slots: Propulsion x2 3310 | -8/Materials | Met 7R-MNS 3351 | -8/Materials | Discovered new exit (range 12) 3453 | -8/Materials | Build established: Sprinter 3839 | -8/Materials | Build established: Mutant 4000 | -8/Materials | Discovered new exit (range 11) 4078 | -8/Materials | Entered Factory 4078 | -7/Factory | Evolved 2 slots: Power x1, Utility x1 4079 | -7/Factory | Caught up to 7R-MNS 4091 | -7/Factory | System Shield fried by hacking feedback 4136 | -7/Factory | Identified exit to DSF 4136 | -7/Factory | Entered DSF 4158 | -7/DSF | Additional patrols routed to DSF 4210 | -7/DSF | Discovered new exit (range 16) 4227 | -7/DSF | Lost 10 parts (2p4n2u2w) 4358 | -7/DSF | Sterilization system engaged 4378 | -7/DSF | Ambient heat levels rising (+10) 4393 | -7/DSF | Ambient heat levels rising (+10) 4408 | -7/DSF | Ambient heat levels rising (+10) 4419 | -7/DSF | Lost 6 parts (1p3n2w) 4421 | -7/DSF | Core integrity fell below 50% 4423 | -7/DSF | Ambient heat levels rising (+10) 4438 | -7/DSF | Ambient heat levels rising (+10) 4453 | -7/DSF | Ambient heat levels rising (+10) 4468 | -7/DSF | Ambient heat levels rising (+10) 4468 | -7/DSF | Core integrity fell below 20% 4474 | -7/DSF | Core destroyed Last Messages --------------- (-26). 04464_ Overheating: Core damaged (-119). 04466_ Overheating: System interference. 04466_ Adv. Targeting Computer temporarily disabled. 04468_ Overheating: Core damaged (-77). 04468_ ALERT: Ambient heat levels +10. 04469_ Power failure, Lgt. Nuclear Core shutdown. 04469_ Overheating: System interference. 04469_ Adv. Assault Cannon temporarily disabled. 04469_ H-61 Shepherd heat damages core (-21). 04470_ Med. Treads broken. 04470_ Overheating: Short circuit. 04471_ Overheating: Core damaged (-119). 04472_ H-61 Shepherd heat damages Rnf. Deuterium Engine. 04472_ A-02 Transporter heat damages core (-5). 04473_ H-61 Shepherd heat spikes uncontrollably. 04474_ Overheating: Core damaged (-91). Map ----- +----------------------------------------------------+ | | | | | | | ??????????????????????????????????? | | ??????????????????????????????????? | | ??????????????????????????????????? | | ??????????????????????????????????? | | ??????????????????????????????????? | | ??????????????????????????????????? | | ????????????????????#######???????? | | ????????????????????#[[ ####### | | ?????????""?????#===#[[ # # | | ????????" ?? | | ????????" ?? | | ????????" ?????#===### ### #!! | | ????????# ???????????# ???# #!! | | ????????# #?????????!! ????####### | | ???????? =????????#!????????????# | | ???????? =????????#?????????????? | | ???????## #??????????????????????? | | ???????#= =??????????????????????? | | ???????#= =??????????????????????? | | ????????= =??????????????????????? | | ??????### #??###???#???????###?### | | ??????#!! #? #?!!#???????#]]]#!! | | ??????#!! @## #!!!##% ##]]]#!! | | ??????#// | | ??????#// H | | ??????#// | | ??????#!! ##!!!;]]]##% ##!!!" | | ??????#!! #?!!!#]]]#?# #?#!??# | | ??????### ######?##### ^ ##????### | | ???????#= ==#??????#!! [[#????## | | ???????#= ==#??????#!! ^[[?????# | | ???????#= ==#???????!! [??????# | | ???????## ###??????### ^ ###????# | | ???????#= ==#??????#]] //####?## | | ???????#= ==#??????#]] //## #### | | ???????## ##########]] //## # # | | ??????### ### =# ==## #[[[ [[ | | ??????#"" ## # ## ## [[[#[[ | | ????""""" = == % % | | ????"##"" === % | | ??????#"""""##==#===# ] | | ??????#"""""#########]] ### | | ??????####"##???????#########?# ## | | ?????????#"#??????????????????##### | | ?????????""???????????????????????# | | ??????????????????????????????????? | | ??????????????????????????????????? | +----------------------------------------------------+ Best States ------------- Heat Dissipation 38 Energy Generation 27 Energy Capacity 360 Matter Stores 300 Matter Capacity 300 Sight Range 16 Robot Scan Range 15 Terrain Scan Density 10 ECM Strength 1 Additional Mass Support 6 Armor Coverage 225 Evasion (%) 64 Targeting Accuracy 16 Recoil Reduction 4 Defensive Hacking 10 Item Schematics ----------------- None Robot Schematics ------------------ None Fabricated ------------ Nothing Alien Tech Used ----------------- None Achievements -------------- None Challenges ------------ None Game ------ Seed NeutrinoTeslaSegregator Manual? 0 Play Time 00:44:38 Cumulative 35.2 hours Start 2024.07.10 @ 01:30:39 End 2024.07.10 @ 02:13:49 Sessions 1 Manual Loads 0 Difficulty Rogue Special Mode None Game No. 82 Rogue 82 Adventurer 0 Explorer 0 Win Type - Total 0 Types 0/0/0/0/0/0/0/0/0 Lore% 24 Gallery% 31 Achievement% 23 Wizard Run 0 Options --------- Layout 1 ASCII 0 Keyboard 1 Movement Arrows Keybinds 0 Fullscreen 1 Font 24/Smallcaps Map View 50x35 Zoom Use 0% Tactical HUD 1 Map Filters NONE Filters NONE Steam 1 RUN: 7549618f-4563-419f-b114-9d0d47bf57e4